[Event "Masterklassen 2025"]
[Site "Uppsala, Sweden"]
[Date "2025.07.03"]
[Round "6.7"]
[White "Jonsson, Jacob"]
[Black "Granath, Jonas"]
[Result "0-1"]
[TimeControl "90 min for 40 move + 30 min with an increment of 30 sec starting move 1"]
[WhiteFideId "1726315"]
[BlackFideId "1761013"]
[WhiteElo "2112"]
[BlackElo "2008"]

1. d4 {[%clk 01:30:58]} {[%emt 00:00:01]} d5 {[%clk 01:30:54]} {[%emt
00:00:06]} 2. c4 {[%clk 01:31:23]} {[%emt 00:00:06]} e6 {[%clk 01:31:16]}
{[%emt 00:00:07]} 3. Nf3 {[%clk 01:31:47]} {[%emt 00:00:07]} Nf6 {[%clk
01:31:35]} {[%emt 00:00:11]} 4. Nc3 {[%clk 01:32:08]} {[%emt 00:00:09]} Be7
{[%clk 01:31:54]} {[%emt 00:00:10]} 5. Bf4 {[%clk 01:32:29]} {[%emt 00:00:10]}
O-O {[%clk 01:32:10]} {[%emt 00:00:14]} 6. e3 {[%clk 01:32:51]} {[%emt
00:00:08]} c5 {[%clk 01:32:27]} {[%emt 00:00:13]} 7. dxc5 {[%clk 01:33:00]}
{[%emt 00:00:21]} Bxc5 {[%clk 01:32:12]} {[%emt 00:00:45]} 8. Qc2 {[%clk
01:33:11]} {[%emt 00:00:19]} Nc6 {[%clk 01:31:36]} {[%emt 00:01:06]} 9. a3
{[%clk 01:33:29]} {[%emt 00:00:12]} Qa5 {[%clk 01:28:49]} {[%emt 00:03:16]} 10.
Rd1 {[%clk 01:33:18]} {[%emt 00:00:40]} Be7 {[%clk 01:28:29]} {[%emt 00:00:50]}
11. Be2 {[%clk 01:32:30]} {[%emt 00:01:19]} Ne4 {[%clk 01:24:27]} {[%emt
00:04:32]} 12. cxd5 {[%clk 01:25:16]} {[%emt 00:07:45]} Nxc3 {[%clk 01:24:10]}
{[%emt 00:00:47]} 13. Qxc3 {[%clk 01:23:43]} {[%emt 00:02:03]} Qxc3+ {[%clk
01:24:04]} {[%emt 00:00:35]} 14. bxc3 {[%clk 01:24:07]} {[%emt 00:00:06]} exd5
{[%clk 01:24:21]} {[%emt 00:00:14]} 15. a4 {[%clk 01:23:47]} {[%emt 00:00:50]}
Rd8 {[%clk 01:14:18]} {[%emt 00:10:32]} 16. Rb1 {[%clk 01:16:48]} {[%emt
00:07:30]} b6 {[%clk 00:58:27]} {[%emt 00:16:21]} 17. Kd2 {[%clk 01:13:03]}
{[%emt 00:04:15]} Na5 {[%clk 00:51:44]} {[%emt 00:07:12]} 18. Nd4 {[%clk
01:08:46]} {[%emt 00:04:47]} Bd7 {[%clk 00:49:47]} {[%emt 00:02:27]} 19. Bb5
{[%clk 01:05:58]} {[%emt 00:03:18]} a6 {[%clk 00:47:43]} {[%emt 00:02:35]} 20.
Bxd7 {[%clk 01:06:17]} {[%emt 00:00:10]} Rxd7 {[%clk 00:47:47]} {[%emt
00:00:27]} 21. Kd3 {[%clk 01:06:35]} {[%emt 00:00:11]} Nc4 {[%clk 00:44:19]}
{[%emt 00:03:58]} 22. Rb3 {[%clk 01:01:19]} {[%emt 00:05:46]} Rc8 {[%clk
00:41:56]} {[%emt 00:02:53]} 23. Nf3 {[%clk 00:50:13]} {[%emt 00:11:36]} Bf6
{[%clk 00:35:27]} {[%emt 00:06:59]} 24. Bg5 {[%clk 00:48:45]} {[%emt 00:01:58]}
Bxg5 {[%clk 00:29:21]} {[%emt 00:06:36]} 25. Nxg5 {[%clk 00:49:08]} {[%emt
00:00:08]} Rdc7 {[%clk 00:28:18]} {[%emt 00:01:32]} 26. Rc1 {[%clk 00:42:00]}
{[%emt 00:07:38]} Rc5 {[%clk 00:25:51]} {[%emt 00:02:57]} 27. Nf3 {[%clk
00:38:24]} {[%emt 00:04:06]} Ra5 {[%clk 00:24:34]} {[%emt 00:01:47]} 28. Rb4
{[%clk 00:36:03]} {[%emt 00:02:51]} Rxa4 {[%clk 00:22:13]} {[%emt 00:02:52]} 29.
Kd4 {[%clk 00:28:40]} {[%emt 00:07:52]} Ra2 {[%clk 00:17:34]} {[%emt 00:05:09]}
30. Kxd5 {[%clk 00:27:25]} {[%emt 00:01:46]} b5 {[%clk 00:17:34]} {[%emt
00:00:30]} 31. Rf1 {[%clk 00:27:01]} {[%emt 00:00:53]} Rc2 {[%clk 00:08:02]}
{[%emt 00:10:02]} 32. Rb3 {[%clk 00:23:47]} {[%emt 00:03:44]} Nb6+ {[%clk
00:07:01]} {[%emt 00:01:30]} 33. Kd4 {[%clk 00:16:02]} {[%emt 00:08:16]} Na4
{[%clk 00:06:45]} {[%emt 00:00:46]} 34. Ra3 {[%clk 00:14:12]} {[%emt 00:02:20]}
Rc4+ {[%clk 00:05:45]} {[%emt 00:01:30]} 35. Kd3 {[%clk 00:10:58]} {[%emt
00:03:44]} R2xc3+ {[%clk 00:05:50]} {[%emt 00:00:25]} 36. Rxc3 {[%clk
00:11:22]} {[%emt 00:00:06]} Rxc3+ {[%clk 00:06:16]} {[%emt 00:00:04]} 37. Kd2
{[%clk 00:11:43]} {[%emt 00:00:09]} b4 {[%clk 00:04:49]} {[%emt 00:01:58]} 38.
Rc1 {[%clk 00:07:15]} {[%emt 00:04:57]} Kf8 {[%clk 00:03:38]} {[%emt 00:01:41]}
39. Rxc3 {[%clk 00:05:29]} {[%emt 00:02:16]} Nxc3 {[%clk 00:04:00]} {[%emt
00:00:08]} 40. Nd4 {[%clk 00:05:45]} {[%emt 00:00:14]} Ke8 {[%clk 00:02:08]}
{[%emt 00:02:21]} 41. Kd3 {[%clk 00:03:00]} {[%emt 00:03:16]} Kd7 {[%clk
00:27:44]} {[%emt 00:04:54]} 42. f3 {[%clk 00:30:41]} {[%emt 00:02:49]} Kd6
{[%clk 00:19:29]} {[%emt 00:08:45]} 43. Kc4 {[%clk 00:26:03]} {[%emt 00:05:08]}
Nd1 {[%clk 00:17:39]} {[%emt 00:02:20]} 44. Nc2 {[%clk 00:24:52]} {[%emt
00:01:41]} a5 {[%clk 00:17:20]} {[%emt 00:00:49]} 45. e4 {[%clk 00:24:27]}
{[%emt 00:00:55]} Kc6 {[%clk 00:12:47]} {[%emt 00:05:03]} 46. g3 {[%clk
00:22:16]} {[%emt 00:02:41]} Nb2+ {[%clk 00:12:15]} {[%emt 00:01:01]} 47. Kb3
{[%clk 00:21:53]} {[%emt 00:00:53]} Nd3 {[%clk 00:12:25]} {[%emt 00:00:20]} 48.
Kc4 {[%clk 00:21:06]} {[%emt 00:01:17]} Ne5+ {[%clk 00:11:29]} {[%emt
00:01:27]} 0-1

[Event "Masterklassen 2025"]
[Site "Uppsala, Sweden"]
[Date "2025.07.03"]
[Round "6.8"]
[White "Odell-Johansson, Leo"]
[Black "Soppela, Toni"]
[Result "1-0"]
[TimeControl "90 min for 40 move + 30 min with an increment of 30 sec starting move 1"]
[WhiteFideId "1722727"]
[BlackFideId "1766163"]
[WhiteElo "1991"]
[BlackElo "2090"]

1. c4 {[%clk 01:29:54]} {[%emt 00:01:05]} Nf6 {[%clk 01:29:48]} {[%emt
00:01:12]} 2. Nc3 {[%clk 01:30:18]} {[%emt 00:00:06]} c5 {[%clk 01:30:03]}
{[%emt 00:00:15]} 3. g3 {[%clk 01:30:43]} {[%emt 00:00:05]} g6 {[%clk
01:30:07]} {[%emt 00:00:27]} 4. Bg2 {[%clk 01:31:08]} {[%emt 00:00:04]} Bg7
{[%clk 01:30:13]} {[%emt 00:00:23]} 5. e4 {[%clk 01:31:29]} {[%emt 00:00:10]}
Nc6 {[%clk 01:30:18]} {[%emt 00:00:26]} 6. Nge2 {[%clk 01:31:22]} {[%emt
00:00:35]} d6 {[%clk 01:30:24]} {[%emt 00:00:25]} 7. d3 {[%clk 01:31:05]}
{[%emt 00:00:48]} O-O {[%clk 01:30:38]} {[%emt 00:00:15]} 8. O-O {[%clk
01:31:11]} {[%emt 00:00:25]} a6 {[%clk 01:30:00]} {[%emt 00:01:08]} 9. h3
{[%clk 01:31:26]} Rb8 {[%clk 01:30:06]} {[%emt 00:00:39]} 10. a4 {[%clk
01:31:50]} Ne8 {[%clk 01:29:39]} {[%emt 00:01:03]} 11. Be3 {[%clk 01:31:01]}
Nc7 {[%clk 01:26:43]} {[%emt 00:04:44]} 12. d4 {[%clk 01:30:21]} cxd4 {[%clk
01:25:24]} {[%emt 00:02:59]} 13. Nxd4 {[%clk 01:30:50]} e5 {[%clk 01:12:09]}
{[%emt 00:13:47]} 14. Nde2 {[%clk 01:08:46]} Ne6 {[%clk 01:09:25]} {[%emt
00:25:48]} 15. Rb1 {[%clk 00:58:45]} Ned4 {[%clk 01:05:22]} {[%emt 00:15:04]}
16. b4 {[%clk 00:50:40]} Be6 {[%clk 00:59:09]} {[%emt 00:15:16]} 17. b5 {[%clk
00:25:02]} Nxe2+ {[%clk 00:48:28]} {[%emt 00:37:20]} 18. Nxe2 {[%clk 00:25:27]}
Na5 {[%clk 00:41:59]} {[%emt 00:07:05]} 19. c5 {[%clk 00:25:30]} Nc4 {[%clk
00:41:59]} 20. cxd6 {[%clk 00:25:30]} Nxe3 {[%clk 00:40:56]} {[%emt 00:07:04]}
21. fxe3 {[%clk 00:21:48]} Qb6 {[%clk 00:36:18]} {[%emt 00:05:15]} 22. Qd3
{[%clk 00:20:25]} Bh6 {[%clk 00:35:25]} {[%emt 00:03:15]} 23. Nc3 {[%clk
00:13:48]} Qxe3+ {[%clk 00:30:29]} {[%emt 00:12:34]} 24. Qxe3 {[%clk 00:14:17]}
Bxe3+ {[%clk 00:30:47]} {[%emt 00:00:14]} 25. Kh2 {[%clk 00:14:35]} Rbd8 {[%clk
00:27:09]} {[%emt 00:04:19]} 26. Nd5 {[%clk 00:13:10]} Bxd5 {[%clk 00:26:34]}
{[%emt 00:03:01]} 27. exd5 {[%clk 00:13:38]} Rxd6 {[%clk 00:26:44]} {[%emt
00:00:21]} 28. Rfe1 {[%clk 00:07:55]} Bd4 {[%clk 00:26:18]} {[%emt 00:07:09]}
29. Rec1 {[%clk 00:08:22]} Rfd8 {[%clk 00:19:35]} {[%emt 00:07:15]} 30. Rc7
{[%clk 00:06:41]} axb5 {[%clk 00:19:11]} {[%emt 00:03:07]} 31. axb5 {[%clk
00:05:17]} b6 {[%clk 00:17:00]} {[%emt 00:04:35]} 32. g4 {[%clk 00:04:09]} R8d7
{[%clk 00:16:58]} {[%emt 00:02:10]} 33. Rc6 {[%clk 00:03:07]} f6 {[%clk
00:16:00]} {[%emt 00:03:00]} 34. Be4 {[%clk 00:03:29]} Bc5 {[%clk 00:15:25]}
{[%emt 00:01:12]} 35. Rc1 {[%clk 00:03:50]} Ra7 {[%clk 00:13:22]} {[%emt
00:02:42]} 36. R1xc5 {[%clk 00:03:47]} {[%emt 00:00:33]} Ra2+ {[%clk 00:11:23]}
{[%emt 00:02:29]} 37. Rc2 {[%clk 00:04:06]} {[%emt 00:00:11]} Rxc2+ {[%clk
00:11:30]} {[%emt 00:00:24]} 38. Bxc2 {[%clk 00:04:27]} {[%emt 00:00:09]} 1-0

[Event "Masterklassen 2025"]
[Site "Uppsala, Sweden"]
[Date "2025.07.03"]
[Round "6.9"]
[White "Karde, Douglas"]
[Black "Lundberg, David"]
[Result "1-0"]
[TimeControl "90 min for 40 move + 30 min with an increment of 30 sec starting move 1"]
[WhiteFideId "1761498"]
[BlackFideId "1707051"]
[WhiteElo "2064"]
[BlackElo "2193"]

1. e4 {[%clk 01:08:47]} {[%emt 00:22:13]} c5 {[%clk 01:30:43]} {[%emt
00:00:18]} 2. Nf3 {[%clk 01:09:13]} {[%emt 00:00:03]} Nc6 {[%clk 01:30:58]}
{[%emt 00:00:15]} 3. d3 {[%clk 01:09:30]} {[%emt 00:00:14]} g6 {[%clk
01:31:05]} {[%emt 00:00:22]} 4. g3 {[%clk 01:09:55]} {[%emt 00:00:05]} Bg7
{[%clk 01:31:26]} {[%emt 00:00:08]} 5. Bg2 {[%clk 01:10:21]} {[%emt 00:00:05]}
d6 {[%clk 01:31:36]} {[%emt 00:00:20]} 6. O-O {[%clk 01:10:46]} {[%emt
00:00:05]} e5 {[%clk 01:31:22]} {[%emt 00:00:44]} 7. Nc3 {[%clk 01:11:12]}
{[%emt 00:00:05]} Nge7 {[%clk 01:30:01]} {[%emt 00:01:51]} 8. Nd2 {[%clk
01:11:35]} {[%emt 00:00:06]} O-O {[%clk 01:29:33]} {[%emt 00:00:57]} 9. Nc4
{[%clk 01:12:02]} {[%emt 00:00:03]} Rb8 {[%clk 01:23:34]} {[%emt 00:06:31]} 10.
a4 {[%clk 01:12:23]} {[%emt 00:00:09]} a6 {[%clk 01:23:43]} {[%emt 00:00:19]}
11. Nd5 {[%clk 01:08:44]} {[%emt 00:04:10]} b5 {[%clk 01:12:45]} {[%emt
00:11:28]} 12. axb5 {[%clk 01:09:05]} {[%emt 00:00:10]} axb5 {[%clk 01:13:12]}
{[%emt 00:00:03]} 13. Nce3 {[%clk 01:09:28]} {[%emt 00:00:06]} Be6 {[%clk
01:03:57]} {[%emt 00:09:45]} 14. f4 {[%clk 01:04:54]} {[%emt 00:05:03]} exf4
{[%clk 01:02:15]} {[%emt 00:02:12]} 15. Nxf4 {[%clk 00:56:58]} {[%emt
00:08:27]} Bd7 {[%clk 00:59:47]} {[%emt 00:02:56]} 16. c3 {[%clk 00:55:20]}
{[%emt 00:02:10]} Ne5 {[%clk 00:54:47]} {[%emt 00:05:31]} 17. h4 {[%clk
00:42:58]} {[%emt 00:12:51]} h6 {[%clk 00:42:37]} {[%emt 00:12:39]} 18. h5
{[%clk 00:35:52]} {[%emt 00:07:37]} g5 {[%clk 00:41:24]} {[%emt 00:01:42]} 19.
Nfd5 {[%clk 00:33:25]} {[%emt 00:02:58]} Nxd5 {[%clk 00:40:26]} {[%emt
00:01:28]} 20. Nxd5 {[%clk 00:33:51]} {[%emt 00:00:05]} Bg4 {[%clk 00:34:02]}
{[%emt 00:06:53]} 21. Qc2 {[%clk 00:32:51]} {[%emt 00:01:31]} Qd7 {[%clk
00:27:18]} {[%emt 00:07:14]} 22. Ra6 {[%clk 00:29:58]} {[%emt 00:03:22]} f5
{[%clk 00:19:56]} {[%emt 00:07:52]} 23. d4 {[%clk 00:15:18]} {[%emt 00:15:11]}
cxd4 {[%clk 00:17:58]} {[%emt 00:02:28]} 24. cxd4 {[%clk 00:15:46]} {[%emt
00:00:01]} Nc4 {[%clk 00:11:39]} {[%emt 00:06:48]} 25. exf5 {[%clk 00:15:39]}
{[%emt 00:00:37]} Bxd4+ {[%clk 00:11:24]} {[%emt 00:00:45]} 26. Kh2 {[%clk
00:15:31]} {[%emt 00:00:38]} Qf7 {[%clk 00:10:42]} {[%emt 00:01:12]} 27. Bh3
{[%clk 00:09:41]} {[%emt 00:06:21]} Bxh3 {[%clk 00:09:29]} {[%emt 00:01:43]} 28.
f6 {[%clk 00:06:38]} {[%emt 00:03:34]} Ne5 {[%clk 00:01:38]} {[%emt 00:08:20]}
29. Ne7+ {[%clk 00:06:38]} {[%emt 00:00:30]} Qxe7 {[%clk 00:01:24]} {[%emt
00:00:44]} 30. fxe7 {[%clk 00:07:02]} {[%emt 00:00:06]} Rxf1 {[%clk 00:01:20]}
{[%emt 00:00:35]} 31. Rxd6 {[%clk 00:04:23]} {[%emt 00:03:08]} Bf5 {[%clk
00:00:37]} {[%emt 00:01:13]} 32. Rd8+ {[%clk 00:04:20]} {[%emt 00:00:33]} Rxd8
{[%clk 00:00:33]} {[%emt 00:00:35]} 33. exd8=Q+ {[%clk 00:04:42]} {[%emt
00:00:08]} Kg7 {[%clk 00:00:35]} {[%emt 00:00:27]} 34. Qxd4 {[%clk 00:04:01]}
{[%emt 00:01:11]} 1-0

[Event "Masterklassen 2025"]
[Site "Uppsala, Sweden"]
[Date "2025.07.03"]
[Round "6.10"]
[White "Eklund, Joel"]
[Black "Darnell, Anton"]
[Result "1-0"]
[TimeControl "90 min for 40 move + 30 min with an increment of 30 sec starting move 1"]
[WhiteFideId "1705288"]
[BlackFideId "1720244"]
[WhiteElo "2194"]
[BlackElo "2007"]

1. c4 {[%clk 01:30:54]} {[%emt 00:00:06]} e6 {[%clk 01:30:33]} {[%emt
00:00:27]} 2. g3 {[%clk 01:31:05]} {[%emt 00:00:18]} d5 {[%clk 01:30:54]}
{[%emt 00:00:09]} 3. Bg2 {[%clk 01:31:22]} {[%emt 00:00:13]} Nf6 {[%clk
01:31:03]} {[%emt 00:00:21]} 4. Nf3 {[%clk 01:31:32]} {[%emt 00:00:21]} Nbd7
{[%clk 01:30:40]} {[%emt 00:00:52]} 5. O-O {[%clk 01:31:45]} {[%emt 00:00:18]}
c6 {[%clk 01:30:52]} {[%emt 00:00:18]} 6. d4 {[%clk 01:31:46]} {[%emt
00:00:30]} Bd6 {[%clk 01:31:05]} {[%emt 00:00:16]} 7. Nfd2 {[%clk 01:30:27]}
{[%emt 00:01:49]} O-O {[%clk 01:26:50]} {[%emt 00:04:45]} 8. Nc3 {[%clk
01:30:40]} {[%emt 00:00:15]} Be7 {[%clk 01:27:04]} {[%emt 00:00:19]} 9. e4
{[%clk 01:30:50]} {[%emt 00:00:20]} dxe4 {[%clk 01:27:01]} {[%emt 00:00:32]} 10.
Ndxe4 {[%clk 01:31:09]} {[%emt 00:00:11]} Nxe4 {[%clk 01:27:16]} {[%emt
00:00:16]} 11. Nxe4 {[%clk 01:31:23]} {[%emt 00:00:15]} f5 {[%clk 01:27:25]}
{[%emt 00:00:21]} 12. Nc3 {[%clk 01:30:09]} {[%emt 00:01:45]} e5 {[%clk
01:26:48]} {[%emt 00:01:06]} 13. d5 {[%clk 01:28:56]} {[%emt 00:01:43]} e4
{[%clk 01:26:59]} {[%emt 00:00:19]} 14. dxc6 {[%clk 01:08:51]} {[%emt
00:20:35]} bxc6 {[%clk 01:21:03]} {[%emt 00:06:26]} 15. f3 {[%clk 01:08:56]}
{[%emt 00:00:26]} exf3 {[%clk 01:19:03]} {[%emt 00:02:28]} 16. Qxf3 {[%clk
01:05:21]} {[%emt 00:04:06]} Ne5 {[%clk 01:18:55]} {[%emt 00:00:38]} 17. Qe2
{[%clk 01:01:34]} {[%emt 00:04:17]} Bf6 {[%clk 01:14:35]} {[%emt 00:04:49]} 18.
Bf4 {[%clk 00:55:27]} {[%emt 00:06:38]} Re8 {[%clk 00:57:12]} {[%emt 00:17:53]}
19. Rad1 {[%clk 00:43:43]} {[%emt 00:12:15]} Qb6+ {[%clk 00:54:30]} {[%emt
00:03:08]} 20. Qf2 {[%clk 00:38:44]} {[%emt 00:05:32]} Nxc4 {[%clk 00:30:35]}
{[%emt 00:24:25]} 21. Qxb6 {[%clk 00:36:32]} {[%emt 00:02:42]} axb6 {[%clk
00:31:03]} {[%emt 00:00:02]} 22. Bxc6 {[%clk 00:36:22]} {[%emt 00:00:40]} Nxb2
{[%clk 00:31:24]} {[%emt 00:00:09]} 23. Bxe8 {[%clk 00:33:44]} {[%emt
00:03:08]} Nxd1 {[%clk 00:31:18]} {[%emt 00:00:35]} 24. Bc6 {[%clk 00:25:31]}
{[%emt 00:08:44]} Ra3 {[%clk 00:16:04]} {[%emt 00:15:44]} 25. Bd5+ {[%clk
00:22:37]} {[%emt 00:03:23]} Kh8 {[%clk 00:16:23]} {[%emt 00:00:12]} 26. Nxd1
{[%clk 00:22:58]} {[%emt 00:00:09]} g5 {[%clk 00:15:22]} {[%emt 00:01:31]} 27.
Be3 {[%clk 00:13:56]} {[%emt 00:09:32]} Ba6 {[%clk 00:13:54]} {[%emt 00:01:58]}
28. Rxf5 {[%clk 00:12:28]} {[%emt 00:01:58]} Rd3 {[%clk 00:13:37]} {[%emt
00:00:47]} 29. Nf2 {[%clk 00:07:18]} {[%emt 00:05:41]} Rxe3 {[%clk 00:12:25]}
{[%emt 00:01:40]} 30. Rxf6 {[%clk 00:07:44]} {[%emt 00:00:04]} Re1+ {[%clk
00:11:19]} {[%emt 00:01:37]} 31. Kg2 {[%clk 00:08:10]} {[%emt 00:00:04]} Bf1+
{[%clk 00:08:11]} {[%emt 00:03:37]} 32. Kf3 {[%clk 00:08:29]} {[%emt 00:00:10]}
Be2+ {[%clk 00:06:08]} {[%emt 00:02:36]} 33. Ke3 {[%clk 00:08:51]} {[%emt
00:00:05]} Bc4+ {[%clk 00:05:18]} {[%emt 00:01:22]} 34. Kd4 {[%clk 00:09:07]}
{[%emt 00:00:15]} Bxd5 {[%clk 00:04:44]} {[%emt 00:01:03]} 35. Kxd5 {[%clk
00:09:30]} {[%emt 00:00:07]} Re2 {[%clk 00:04:57]} {[%emt 00:00:17]} 36. a3
{[%clk 00:09:26]} {[%emt 00:00:34]} Re3 {[%clk 00:04:09]} {[%emt 00:01:17]} 37.
a4 {[%clk 00:04:31]} {[%emt 00:05:25]} Ra3 {[%clk 00:03:33]} {[%emt 00:01:07]}
38. Rxb6 {[%clk 00:03:46]} {[%emt 00:01:16]} Rxa4 {[%clk 00:03:50]} {[%emt
00:00:12]} 39. Rb7 {[%clk 00:03:14]} {[%emt 00:01:02]} h5 {[%clk 00:03:39]}
{[%emt 00:00:40]} 40. Ne4 {[%clk 00:02:53]} {[%emt 00:00:52]} Ra6 {[%clk
00:03:10]} {[%emt 00:00:58]} 41. Ke5 {[%clk 00:03:13]} {[%emt 00:00:11]} Ra5+
{[%clk 00:02:32]} {[%emt 00:01:09]} 42. Kf6 {[%clk 00:01:31]} {[%emt 00:02:12]}
Ra6+ {[%clk 00:02:37]} {[%emt 00:00:24]} 43. Kf5 {[%clk 00:01:53]} {[%emt
00:00:07]} 1-0

[Event "Masterklassen 2025"]
[Site "Uppsala, Sweden"]
[Date "2025.07.03"]
[Round "6.11"]
[White "Willstedt, Lukas"]
[Black "Kingsley, Elias"]
[Result "1-0"]
[TimeControl "90 min for 40 move + 30 min with an increment of 30 sec starting move 1"]
[WhiteFideId "1751913"]
[BlackFideId "1775006"]
[WhiteElo "2055"]
[BlackElo "2072"]

1. d4 {[%clk 01:30:58]} Nf6 {[%clk 01:30:55]} {[%emt 00:00:06]} 2. c4 {[%clk
01:31:23]} {[%emt 00:00:05]} e6 {[%clk 01:31:18]} {[%emt 00:00:07]} 3. Nf3
{[%clk 01:31:49]} {[%emt 00:00:04]} b6 {[%clk 01:31:43]} {[%emt 00:00:06]} 4.
g3 {[%clk 01:32:14]} {[%emt 00:00:04]} Bb7 {[%clk 01:31:00]} {[%emt 00:01:13]}
5. Bg2 {[%clk 01:32:35]} {[%emt 00:00:08]} Bb4+ {[%clk 01:30:37]} {[%emt
00:00:54]} 6. Bd2 {[%clk 01:32:58]} {[%emt 00:00:07]} Bxd2+ {[%clk 01:28:44]}
{[%emt 00:02:24]} 7. Qxd2 {[%clk 01:30:16]} {[%emt 00:03:11]} O-O {[%clk
01:28:51]} {[%emt 00:00:24]} 8. O-O {[%clk 01:29:28]} {[%emt 00:01:17]} d6
{[%clk 01:28:06]} {[%emt 00:01:15]} 9. Nc3 {[%clk 01:27:33]} {[%emt 00:02:24]}
Qe7 {[%clk 01:27:11]} {[%emt 00:01:25]} 10. d5 {[%clk 01:22:48]} {[%emt
00:05:15]} e5 {[%clk 01:20:42]} {[%emt 00:06:59]} 11. e4 {[%clk 01:22:26]}
{[%emt 00:00:53]} g6 {[%clk 01:19:19]} {[%emt 00:01:52]} 12. Ng5 {[%clk
01:12:33]} {[%emt 00:10:23]} h6 {[%clk 01:10:21]} {[%emt 00:09:28]} 13. Nh3
{[%clk 01:12:37]} {[%emt 00:00:26]} Kg7 {[%clk 01:09:07]} {[%emt 00:01:45]} 14.
f4 {[%clk 01:12:27]} {[%emt 00:00:40]} exf4 {[%clk 01:06:41]} {[%emt 00:02:56]}
15. gxf4 {[%clk 01:11:21]} {[%emt 00:01:36]} Ng4 {[%clk 01:00:03]} {[%emt
00:07:07]} 16. Qd4+ {[%clk 01:03:10]} {[%emt 00:08:41]} f6 {[%clk 00:54:26]}
{[%emt 00:06:08]} 17. Nf2 {[%clk 00:56:55]} {[%emt 00:06:44]} Nxf2 {[%clk
00:54:37]} {[%emt 00:00:19]} 18. Rxf2 {[%clk 00:57:08]} {[%emt 00:00:17]} Bc8
{[%clk 00:45:42]} {[%emt 00:09:25]} 19. Re1 {[%clk 00:51:56]} {[%emt 00:05:42]}
Nd7 {[%clk 00:44:56]} {[%emt 00:01:17]} 20. Bh3 {[%clk 00:49:15]} {[%emt
00:03:11]} Kh7 {[%clk 00:43:45]} {[%emt 00:01:41]} 21. b4 {[%clk 00:42:57]}
{[%emt 00:06:48]} f5 {[%clk 00:36:22]} {[%emt 00:07:52]} 22. Rfe2 {[%clk
00:40:59]} {[%emt 00:02:29]} Qh4 {[%clk 00:33:08]} {[%emt 00:03:44]} 23. exf5
{[%clk 00:38:27]} {[%emt 00:03:02]} Ne5 {[%clk 00:32:12]} {[%emt 00:01:25]} 24.
Qe3 {[%clk 00:31:09]} {[%emt 00:07:48]} Bxf5 {[%clk 00:26:04]} {[%emt
00:06:38]} 25. Bxf5 {[%clk 00:29:21]} {[%emt 00:02:18]} Rxf5 {[%clk 00:23:49]}
{[%emt 00:02:45]} 26. fxe5 {[%clk 00:28:34]} {[%emt 00:01:18]} Rxe5 {[%clk
00:21:50]} {[%emt 00:02:29]} 27. Ne4 {[%clk 00:22:32]} {[%emt 00:06:31]} Rae8
{[%clk 00:21:43]} {[%emt 00:00:37]} 28. Qf2 {[%clk 00:19:30]} {[%emt 00:03:32]}
Qg4+ {[%clk 00:19:46]} {[%emt 00:02:27]} 29. Qg2 {[%clk 00:15:01]} {[%emt
00:05:00]} Qh4 {[%clk 00:14:30]} {[%emt 00:05:45]} 30. Qg3 {[%clk 00:14:55]}
{[%emt 00:00:36]} Qd8 {[%clk 00:12:56]} {[%emt 00:02:04]} 31. Nc3 {[%clk
00:14:53]} {[%emt 00:00:32]} Rxe2 {[%clk 00:11:54]} {[%emt 00:01:32]} 32. Rxe2
{[%clk 00:15:22]} {[%emt 00:00:02]} Rxe2 {[%clk 00:12:01]} {[%emt 00:00:23]} 33.
Nxe2 {[%clk 00:15:50]} {[%emt 00:00:02]} Qf6 {[%clk 00:12:23]} {[%emt
00:00:07]} 34. a3 {[%clk 00:14:39]} {[%emt 00:01:42]} Qa1+ {[%clk 00:12:24]}
{[%emt 00:00:29]} 35. Kf2 {[%clk 00:14:34]} {[%emt 00:00:34]} Qa2 {[%clk
00:12:37]} {[%emt 00:00:18]} 36. Qc3 {[%clk 00:13:43]} {[%emt 00:01:20]} h5
{[%clk 00:12:43]} {[%emt 00:00:25]} 37. h3 {[%clk 00:12:24]} {[%emt 00:01:48]}
1-0